[Event "Turkish Cup 2022"]
[Site "Sakarya"]
[Date "2022.03.29"]
[Round "7.6"]
[White "Eren, Ataberk"]
[Black "Kilic, Eray"]
[Result "0-1"]
[ECO "E32"]
[WhiteElo "2306"]
[BlackElo "2088"]
[Annotator "NA"]
[PlyCount "116"]
[EventDate "2022.03.25"]
[EventType "swiss"]
[EventCountry "TUR"]
[SourceTitle "playchess.com"]
[Source "ChessBase"]
[SourceQuality "1"]
[TimeControl "5400+30"]

1. d4 Nf6 2. c4 e6 3. Nc3 Bb4 4. Qc2 O-O 5. e4 d5 6. e5 Ne4 7. Bd3 c5 8. Nf3 {[%emt 0:03:30]} cxd4 {[%emt 0:07:30]} 9. Nxd4 {[%emt 0:00:00]} Nd7 {[%emt 0:01:30]} 10. Bf4 {[%emt 0:00:00]} Ndc5 {[%emt 0:02:30]} 11. O-O {[%emt 0:03:30]} Bxc3 {[%emt 0:09:30]} 12. bxc3 {[%emt 0:00:30]} Nxd3 {[%emt 0:00:30]} 13. Qxd3 {[%emt 0:00:30]} Nc5 {[%emt 0:06:30]} 14. Qe3 {[%emt 0:07:30]} dxc4 {[%emt 0:07:30]} 15. Bg5 {[%emt 0:03:30]} Qc7 {[%emt 0:04:30]} 16. Nb5 {[%emt 0:09:30]} Qc6 {[%emt 0:01:30]} 17. Rab1 {[%emt 0:13:30]} b6 {[%emt 0:07:30]} 18. f3 {[%emt 0:04:30]} Nd3 {[%emt 0:03:30]} 19. Be7 {[%emt 0:03:30]} Re8 {[%emt 0:00:30]} 20. Bd6 {[%emt 0:00:30]} Rd8 {[%emt 0:06:30]} 21. Qg5 {[%emt 0:11:30]} Rd7 {[%emt 0:11:30]} 22. Nd4 {[%emt 0:08:30]} Qd5 {[%emt 0:00:30]} 23. f4 {[%emt 0:10:30]} Bb7 {[%emt 0:17:11]} 24. Qg3 {[%emt 0:05:32]} Rc8 {[%emt 0:06:41]} 25. f5 {[%emt 0:01:33]} Kh8 {[%emt 0:02:42]} 26. Rb5 {[%emt 0:00:30]} Nc5 {[%emt 0:00:53]} 27. h4 {[%emt 0:13:09]} exf5 {[%emt 0:03:21]} 28. Nxf5 {[%emt 0:00:27]} Rg8 {[%emt 0:00:30]} 29. Bf8 {[%emt 0:01:58]} Qxg2+ {[%emt 0:00:50]} 30. Qxg2 {[%emt 0:00:30]} Bxg2 {[%emt 0:00:00]} 31. Kxg2 {[%emt 0:00:12]} Rxf8 {[%emt 0:00:15]} 32. Nd6 {[%emt 0:00:33]} Kg8 {[%emt 0:00:20]} 33. Nxc4 {[%emt 0:01:09]} Rd3 {[%emt 0:00:16]} 34. Rf3 {[%emt 0:00:11]} Rfd8 {[%emt 0:00:00]} 35. Nd6 {[%emt 0:00:18]} Rd2+ {[%emt 0:00:21]} 36. Rf2 {[%emt 0:00:39]} Rxf2+ {[%emt 0:00:34]} 37. Kxf2 {[%emt 0:00:30]} f6 {[%emt 0:00:00]} 38. Nc4 {[%emt 0:00:20]} Nd3+ {[%emt 0:00:07]} 39. Ke3 {[%emt 0:00:30]} Nxe5 {[%emt 0:00:16]} 40. Nxe5 {[%emt 0:00:00]} Re8 {[%emt 0:00:01]} 41. Kd4 {[%emt 0:00:26]} Rxe5 {[%emt 0:00:00]} 42. Rxe5 {[%emt 0:00:04]} fxe5+ {[%emt 0:00:04]} 43. Kxe5 {[%emt 0:00:30]} Kf7 {[%emt 0:00:30]} 44. Kf5 {[%emt 0:00:30]} g6+ {[%emt 0:00:30]} 45. Ke5 {[%emt 0:00:30]} Ke7 {[%emt 0:00:30]} 46. a4 {[%emt 0:00:42]} h6 {[%emt 0:00:56]} 47. c4 {[%emt 0:00:30]} a5 {[%emt 0:00:38]} 48. Kd5 {[%emt 0:00:44]} Kd7 {[%emt 0:00:30]} 49. c5 {[%emt 0:00:30]} bxc5 {[%emt 0:00:30]} 50. Kxc5 {[%emt 0:00:30]} g5 {[%emt 0:00:30]} 51. hxg5 {[%emt 0:00:30]} hxg5 {[%emt 0:00:30]} 52. Kd5 {[%emt 0:00:30]} g4 {[%emt 0:00:30]} 53. Ke4 {[%emt 0:00:30]} Kc6 {[%emt 0:00:30]} 54. Kf4 {[%emt 0:00:30]} Kc5 {[%emt 0:00:30]} 55. Kxg4 {[%emt 0:00:30]} Kb4 {[%emt 0:00:30]} 56. Kf3 {[%emt 0:00:30]} Kxa4 {[%emt 0:00:30]} 57. Ke2 {[%emt 0:00:30]} Kb3 {[%emt 0:00:30]} 58. Kd1 {[%emt 0:00:30]} Kb2 {[%emt 0:00:30]} 0-1

[Event "Turkish Cup 2022"]
[Site "Sakarya"]
[Date "2022.03.29"]
[Round "7.8"]
[White "Temizer, Umut"]
[Black "Ozdemir, Serhan Berat"]
[Result "0-1"]
[ECO "C00"]
[WhiteElo "1972"]
[BlackElo "2185"]
[Annotator "TA"]
[PlyCount "88"]
[EventDate "2022.03.25"]
[EventType "swiss"]
[EventCountry "TUR"]
[SourceTitle "playchess.com"]
[Source "ChessBase"]
[SourceQuality "1"]
[TimeControl "5400+30"]

{[%evp 18,88,37,0,46,37,46,50,35,35,41,35,43,50,43,35,35,33,30,20,24,16,34,25,32,16,88,88,104,78,56,-15,-31,-7,-4,-120,-120,-122,-124,-110,-110,-162,-134,-108,-106,-224,-277,-263,-270,-275,-233,-287,-275,-335,-337,-333,-320,-381,-375,-514,-505,-497,-492,-625,-625,-1068,-918,-959,-677,-1636,-1480,-5243,-3287]} 1. e4 c5 2. Nf3 e6 3. g3 {[%emt 0:01:00]} Nc6 {[%emt 0:07:00]} 4. Bg2 {[%emt 0:00:00]} Nf6 {[%emt 0:02:30]} 5. Qe2 {[%emt 0:00:00]} d6 {[%emt 0:02:30]} 6. O-O {[%emt 0:01:30]} Be7 {[%emt 0:00:30]} 7. Rd1 {[%emt 0:00:30]} e5 {[%emt 0:00:30]} 8. c3 {[%emt 0:11:30]} O-O {[%emt 0:00:30]} 9. h3 {[%emt 0:00:30]} Qc7 {[%emt 0:03:30]} 10. Na3 {[%emt 0:25:30]} a6 {[%emt 0:07:30]} (10... Be6 $11 {was preferrable.}) 11. d4 $14 {[%emt 0:06:30]} b5 {[%emt 0:01:30]} 12. Nc2 {[%emt 0:01:30]} cxd4 {[%emt 0:04:30]} 13. cxd4 {[%emt 0:00:30]} Re8 {[%emt 0:00:30]} 14. d5 {[%emt 0:17:30]} Na5 {[%emt 0:02:30]} 15. Nfe1 {[%emt 0:00:30]} Bd7 {[%emt 0:01:30]} 16. b3 {[%emt 0:06:30]} Rac8 {[%emt 0:01:30]} 17. Nb4 {[%emt 0:07:16]} Nb7 {[%emt 0:04:30]} 18. Be3 {[%emt 0:00:24]} Nc5 {[%emt 0:01:30]} 19. Rac1 {[%emt 0:00:44]} Qa5 {[%emt 0:07:30]} 20. Bd2 {[%emt 0:08:22]} Qb6 {[%emt 0:01:30]} 21. Nbd3 {[%emt 0:00:20]} a5 {[%emt 0:04:30]} (21... Nxd3 $11 {remains equal.} 22. Nxd3 a5) 22. Be3 {[%emt 0:00:57]} Qb8 {[%emt 0:01:30]} 23. Nxc5 {[%emt 0:01:35]} dxc5 {[%emt 0:00:30]} 24. Nd3 {[%emt 0:00:30]} ({White should play} 24. Bf3 $14) 24... c4 $11 {[%emt 0:00:30]} 25. bxc4 {[%emt 0:00:30]} bxc4 {[%emt 0:00:30]} 26. Ne1 {[%emt 0:00:30]} (26. Nb2 $11) 26... Ba4 $17 {[%emt 0:00:30]} 27. Nc2 {[%emt 0:03:52]} Qb2 {[%emt 0:01:30]} 28. d6 {[%emt 0:01:38] [#]} Bf8 $1 {[%emt 0:04:30]} 29. f4 {[%emt 0:00:30]} (29. Bg5 $17 {keeps fighting.} Red8 30. Bxf6 gxf6 31. Qg4+ Kh8 32. Rf1) 29... Nd7 {[%emt 0:00:30]} 30. Rd5 {[%emt 0:00:00]} Bc6 {[%emt 0:06:30]} 31. Rxa5 {[%emt 0:00:13]} (31. Rdd1 $17) 31... exf4 $19 {[%emt 0:00:30]} 32. gxf4 {[%emt 0:00:51]} Bxe4 {[%emt 0:00:30]} 33. Bxe4 {[%emt 0:00:30]} Rxe4 {[%emt 0:00:30]} 34. Re1 {[%emt 0:00:47]} Nf6 {[%emt 0:06:30]} ({Avoid the trap} 34... Bxd6 $2 35. Rd5 Qb8 36. Qd2 $19) 35. Re5 {[%emt 0:00:47]} Rxe5 {[%emt 0:00:30]} (35... Bxd6 $2 36. Rxe4 Nxe4 37. Bd4 Qxa2 38. Qxe4 $18) 36. fxe5 {[%emt 0:00:09]} Qxe5 {[%emt 0:00:30]} 37. Qg2 {[%emt 0:00:29]} Qxd6 {[%emt 0:00:30]} 38. Nd4 {[%emt 0:00:30]} Nd5 {[%emt 0:00:30]} 39. Bf2 {[%emt 0:04:10]} Nf4 {[%emt 0:05:30]} 40. Qf3 {[%emt 0:00:49]} Nd3 {[%emt 0:02:30]} 41. Re4 {[%emt 0:00:16]} Nxf2 {[%emt 0:00:30]} 42. Qxf2 {[%emt 0:00:11]} Qb6 {[%emt 0:00:53]} 43. Qf5 {[%emt 0:00:53]} Rc5 {[%emt 0:01:52]} 44. Qd7 {[%emt 0:00:24]} Qb1+ {[%emt 0:00:00]} 0-1

[Event "Turkish Cup 2022"]
[Site "Sakarya"]
[Date "2022.03.29"]
[Round "7.9"]
[White "Ererdem, Gani Eren"]
[Black "Ozcan, Ilker"]
[Result "1/2-1/2"]
[ECO "D02"]
[WhiteElo "2134"]
[BlackElo "2014"]
[Annotator "NA"]
[PlyCount "40"]
[EventDate "2022.03.25"]
[EventType "swiss"]
[EventCountry "TUR"]
[SourceTitle "playchess.com"]
[Source "ChessBase"]
[SourceQuality "1"]
[TimeControl "5400+30"]

1. d4 Nf6 2. Nf3 g6 3. Nbd2 d5 4. e3 Bg7 5. b4 O-O 6. c4 a5 {[%emt 0:04:30]} 7. b5 {[%emt 0:03:00]} c5 {[%emt 0:02:30]} 8. Bb2 {[%emt 0:00:30]} Nbd7 {[%emt 0:03:30]} 9. Rc1 {[%emt 0:04:30]} Re8 {[%emt 0:04:30]} 10. cxd5 {[%emt 0:04:30]} cxd4 {[%emt 0:03:30]} 11. e4 {[%emt 0:12:30]} e6 {[%emt 0:00:30]} 12. dxe6 {[%emt 0:00:30]} Rxe6 {[%emt 0:00:30]} 13. Bc4 {[%emt 0:00:30]} Ne5 {[%emt 0:08:30]} 14. Nxe5 {[%emt 0:10:30]} Rxe5 {[%emt 0:00:30]} 15. O-O {[%emt 0:00:30]} Nxe4 {[%emt 0:15:30]} 16. Nf3 {[%emt 0:07:30]} Re7 {[%emt 0:16:30]} 17. Bxd4 {[%emt 0:13:30]} Bg4 {[%emt 0:04:30]} 18. Bxg7 {[%emt 0:16:30]} Qxd1 {[%emt 0:00:30]} 19. Rfxd1 {[%emt 0:03:30]} Kxg7 {[%emt 0:00:30]} 20. Re1 {[%emt 0:02:30]} Rae8 {[%emt 0:01:30]} 1/2-1/2

[Event "Turkish Cup 2022"]
[Site "Sakarya"]
[Date "2022.03.29"]
[Round "7.14"]
[White "Gulden, Egemen"]
[Black "Tahaoglu, Erkin"]
[Result "0-1"]
[ECO "A08"]
[WhiteElo "2094"]
[BlackElo "1694"]
[Annotator "NA"]
[PlyCount "105"]
[EventDate "2022.03.25"]
[EventType "swiss"]
[EventCountry "TUR"]
[SourceTitle "playchess.com"]
[Source "ChessBase"]
[SourceQuality "1"]
[TimeControl "5400+30"]

1. Nf3 d5 2. d3 c5 3. g3 Nc6 4. Bg2 Nf6 5. O-O {[%emt 0:04:00]} e5 {[%emt 0:04:00]} 6. Bg5 {[%emt 0:04:30]} Be7 {[%emt 0:03:30]} 7. Nfd2 {[%emt 0:02:30]} Ng8 {[%emt 0:01:30]} 8. Bxe7 {[%emt 0:00:00]} Ngxe7 {[%emt 0:00:30]} 9. c4 {[%emt 0:03:00]} dxc4 {[%emt 0:03:30]} 10. Nxc4 {[%emt 0:00:30]} O-O {[%emt 0:04:30]} 11. Nc3 {[%emt 0:04:30]} Be6 {[%emt 0:01:30]} 12. b3 {[%emt 0:08:30]} Rc8 {[%emt 0:05:30]} 13. Ne4 {[%emt 0:01:30]} b6 {[%emt 0:02:30]} 14. Ng5 {[%emt 0:20:30]} Bd5 {[%emt 0:00:30]} 15. Nf3 {[%emt 0:00:30]} Ng6 {[%emt 0:04:30]} 16. h4 {[%emt 0:01:30]} Nd4 {[%emt 0:00:30]} 17. h5 {[%emt 0:11:30]} Nxf3+ {[%emt 0:07:30]} 18. Bxf3 {[%emt 0:03:30]} Bxf3 {[%emt 0:00:30]} 19. exf3 {[%emt 0:06:30]} Ne7 {[%emt 0:00:30]} 20. Nxe5 {[%emt 0:00:30]} Qd5 {[%emt 0:03:30]} 21. Qe2 {[%emt 0:03:30]} Nc6 {[%emt 0:01:30]} 22. Nxc6 {[%emt 0:02:30]} Rxc6 {[%emt 0:00:30]} 23. Qe4 {[%emt 0:00:00]} Rd6 {[%emt 0:00:00]} 24. Qg4 {[%emt 0:10:52]} Rfd8 {[%emt 0:07:00]} 25. Rad1 {[%emt 0:02:47]} Qd4 {[%emt 0:03:30]} 26. Qxd4 {[%emt 0:00:30]} Rxd4 {[%emt 0:00:30]} 27. Rfe1 {[%emt 0:00:30]} Kf8 {[%emt 0:00:30]} 28. Re3 {[%emt 0:00:13]} a5 {[%emt 0:07:30]} 29. Kf1 {[%emt 0:00:30]} a4 {[%emt 0:00:30]} 30. Ke2 {[%emt 0:01:12]} axb3 {[%emt 0:03:30]} 31. axb3 {[%emt 0:00:30]} Rb4 {[%emt 0:00:30]} 32. Rb1 {[%emt 0:00:30]} Ra8 {[%emt 0:00:30]} 33. Re4 {[%emt 0:00:30]} Rb5 {[%emt 0:02:30]} 34. Kd1 {[%emt 0:04:04]} Ra3 {[%emt 0:00:30]} 35. Kc2 {[%emt 0:00:30]} Ra2+ {[%emt 0:01:30]} 36. Rb2 {[%emt 0:00:33]} Ra1 {[%emt 0:00:30]} 37. Kc3 {[%emt 0:00:58]} Rc1+ {[%emt 0:01:30]} 38. Kd2 {[%emt 0:00:53]} Rf1 {[%emt 0:02:30]} 39. Ke3 {[%emt 0:02:43]} f5 {[%emt 0:00:30]} 40. Ra4 {[%emt 0:00:30]} Re1+ {[%emt 0:00:30]} 41. Kd2 {[%emt 0:00:30]} Rh1 {[%emt 0:05:30]} 42. g4 {[%emt 0:02:16]} Kf7 {[%emt 0:00:30]} 43. Rf4 {[%emt 0:00:34]} g6 {[%emt 0:00:30]} 44. hxg6+ {[%emt 0:00:34]} hxg6 {[%emt 0:00:00]} 45. Rc4 {[%emt 0:00:25]} Ke6 {[%emt 0:03:00]} 46. d4 {[%emt 0:00:43]} cxd4 {[%emt 0:02:30]} 47. Rxd4 {[%emt 0:00:01]} Rd5 {[%emt 0:00:30]} 48. Rxd5 {[%emt 0:00:52]} Kxd5 {[%emt 0:00:30]} 49. Ke3 {[%emt 0:00:00]} b5 {[%emt 0:00:30]} 50. Rc2 {[%emt 0:00:42]} fxg4 {[%emt 0:01:30]} 51. fxg4 {[%emt 0:00:32]} Rb1 {[%emt 0:00:30]} 52. Rc3 {[%emt 0:01:18]} g5 {[%emt 0:00:30]} 53. f3 {[%emt 0:00:48]} 0-1

[Event "Turkish Cup 2022"]
[Site "Sakarya"]
[Date "2022.03.29"]
[Round "7.15"]
[White "Maruflu, Enes Yusuf"]
[Black "Korkmaz, Necmettin"]
[Result "1/2-1/2"]
[ECO "C02"]
[WhiteElo "1945"]
[BlackElo "2076"]
[Annotator "TA"]
[PlyCount "138"]
[EventDate "2022.03.25"]
[EventType "swiss"]
[EventCountry "TUR"]
[SourceTitle "playchess.com"]
[Source "ChessBase"]
[SourceQuality "1"]
[TimeControl "5400+30"]

{[%evp 68,138,481,45,45,45,45,45,45,45,48,0,0,-18,-18,-1443,-18,-26,0,0,0,0,0,0,0,0,95,0,69,0,0,0,48,55,55,55,69,69,69,55,55,55,81,55,55,55,55,0,0,0,55,55,55,55,55,55,55,55,55,55,55,0,0,0,0,0,0,0,0,0,0,0,0]} 1. e4 e6 2. d4 d5 3. e5 c5 4. c3 Qb6 5. Nf3 Bd7 6. a3 {[%emt 0:00:30]} Nc6 {[%emt 0:11:30]} 7. b4 {[%emt 0:01:30]} cxd4 {[%emt 0:00:30]} 8. cxd4 {[%emt 0:00:00]} Rc8 {[%emt 0:00:30]} 9. Be3 {[%emt 0:07:00]} Nge7 {[%emt 0:04:30]} 10. Bd3 {[%emt 0:01:30]} Nf5 {[%emt 0:00:30]} 11. O-O {[%emt 0:08:30]} Be7 {[%emt 0:03:30]} 12. Bxf5 {[%emt 0:03:30]} exf5 {[%emt 0:00:30]} 13. Nc3 {[%emt 0:06:30]} Be6 {[%emt 0:12:30]} 14. Na4 {[%emt 0:05:30]} Qd8 {[%emt 0:02:30]} 15. Qd2 {[%emt 0:03:30]} b6 {[%emt 0:02:30]} 16. Rac1 {[%emt 0:00:30]} O-O {[%emt 0:02:30]} 17. Rc3 {[%emt 0:04:30]} Qd7 {[%emt 0:06:30]} 18. Qc2 {[%emt 0:11:30]} Nb8 {[%emt 0:12:30]} 19. Rc1 {[%emt 0:01:30]} Rxc3 {[%emt 0:02:30]} 20. Nxc3 {[%emt 0:00:00]} Rc8 {[%emt 0:00:30]} 21. Qb2 {[%emt 0:00:00]} Nc6 {[%emt 0:04:30]} 22. Ne2 {[%emt 0:01:30]} h6 {[%emt 0:05:30]} 23. h4 {[%emt 0:00:30]} b5 {[%emt 0:08:30]} 24. Nf4 {[%emt 0:01:30]} Nd8 {[%emt 0:02:27]} 25. g3 {[%emt 0:06:30]} Rc4 {[%emt 0:01:17]} 26. Nd2 {[%emt 0:05:30]} g5 {[%emt 0:02:53]} 27. Nxc4 {[%emt 0:07:30]} dxc4 {[%emt 0:05:25]} 28. hxg5 {[%emt 0:01:30]} hxg5 {[%emt 0:00:30]} 29. Nxe6 {[%emt 0:00:30]} Nxe6 {[%emt 0:00:04]} 30. f4 {[%emt 0:02:30]} Bd8 {[%emt 0:00:30]} 31. Rd1 {[%emt 0:00:30]} Bb6 {[%emt 0:03:51]} 32. Qf2 {[%emt 0:12:03]} c3 {[%emt 0:02:57]} 33. fxg5 {[%emt 0:02:42]} f4 {[%emt 0:02:11]} 34. gxf4 {[%emt 0:00:47]} Nxd4 {[%emt 0:00:18]} 35. f5 $2 {[%emt 0:02:28]} (35. Rxd4 $18 Qg4+ 36. Qg2 Qxg2+ 37. Kxg2) 35... c2 $1 $14 {[%emt 0:00:18]} 36. Qxc2 {[%emt 0:00:06]} ({Don't go for} 36. Rxd4 $2 Bxd4 37. Qxc2 Bxe3+ 38. Kf1 Qd4 $19) 36... Nxc2 {[%emt 0:01:54]} 37. Rxd7 {[%emt 0:00:30]} Nxe3 {[%emt 0:00:00]} 38. f6 {[%emt 0:02:52]} Ng4+ {[%emt 0:01:00]} 39. Kf1 {[%emt 0:00:21]} (39. Kg2 $14 Nxe5 40. Re7) 39... Nxe5 $11 {[%emt 0:00:06]} 40. Rd5 {[%emt 0:00:30]} Nc4 {[%emt 0:00:30]} 41. Rxb5 $2 {[%emt 0:00:30][%mdl 8192]} (41. Ke2 $11) 41... Nxa3 $2 {[%emt 0:00:30]} (41... a6 $19 42. Rxb6 Nxb6) 42. Re5 $11 {[%emt 0:00:00]} Kf8 {[%emt 0:00:00]} 43. Kg2 {[%emt 0:00:01]} Nc2 {[%emt 0:00:13]} 44. b5 {[%emt 0:00:30]} Nd4 {[%emt 0:00:20]} 45. Kh3 {[%emt 0:00:47]} Ne6 {[%emt 0:01:24]} 46. Kg4 {[%emt 0:01:12]} Bc7 {[%emt 0:01:01] [#]} (46... Nd4 $11 {keeps the balance.}) 47. Re1 {[%emt 0:00:52]} (47. Re4 $1 $16) 47... Kg8 {[%emt 0:00:30]} (47... Bb6 $11) 48. Rd1 {[%emt 0:01:56]} (48. Re4 $1 $14) 48... Bb6 $11 {[%emt 0:00:54]} 49. Rd7 {[%emt 0:00:30]} Nf8 {[%emt 0:00:30]} (49... Kh7 $11) 50. Re7 {[%emt 0:01:06]} Bc5 {[%emt 0:00:49]} 51. Kf5 {[%emt 0:00:30]} Bg1 {[%emt 0:00:30]} 52. Re8 {[%emt 0:00:30]} Bc5 $1 {[%emt 0:00:30]} 53. Rc8 {[%emt 0:00:30]} Be3 {[%emt 0:00:30]} 54. Kg4 {[%emt 0:00:30]} Bd2 $1 {[%emt 0:00:47]} 55. Ra8 {[%emt 0:00:00]} Be3 {[%emt 0:00:30]} 56. Kf5 {[%emt 0:00:14]} Bc5 $1 {[%emt 0:00:30]} 57. Ke4 {[%emt 0:00:30]} ({White should try} 57. Re8 $14) 57... Kh7 $1 $11 {[%emt 0:00:14]} 58. Kf5 {[%emt 0:01:50]} Ng6 {[%emt 0:00:43]} (58... Kg8 $1 $11) 59. Rc8 $14 {[%emt 0:00:30]} Bb6 {[%emt 0:00:23]} 60. Re8 {[%emt 0:00:32]} Bc5 {[%emt 0:00:41]} 61. Rb8 {[%emt 0:00:39]} Bb6 {[%emt 0:00:30]} 62. Rb7 {[%emt 0:00:30]} Kg8 {[%emt 0:00:30]} 63. Ke4 {[%emt 0:00:30]} Nh4 {[%emt 0:00:30]} 64. Rb8+ {[%emt 0:00:30]} (64. Kf4 $14) 64... Kh7 $11 {[%emt 0:00:02]} 65. Rf8 {[%emt 0:00:42]} Kg6 {[%emt 0:00:48]} 66. Rg8+ {[%emt 0:00:30]} Kh5 {[%emt 0:00:11]} 67. Rg7 {[%emt 0:00:41]} Ng6 {[%emt 0:00:30]} 68. Kf5 {[%emt 0:00:22]} Nh4+ {[%emt 0:00:42]} 69. Ke4 {[%emt 0:00:17]} Ng6 {[%emt 0:00:00]} 1/2-1/2

[Event "Turkish Cup 2022"]
[Site "Sakarya"]
[Date "2022.03.29"]
[Round "7.16"]
[White "Canbulan, Arda"]
[Black "Gunduz, Umut Erdem"]
[Result "1/2-1/2"]
[ECO "C45"]
[WhiteElo "1867"]
[BlackElo "2258"]
[Annotator "TA"]
[PlyCount "89"]
[EventDate "2022.03.25"]
[EventType "swiss"]
[EventCountry "TUR"]
[SourceTitle "playchess.com"]
[Source "ChessBase"]
[SourceQuality "1"]
[TimeControl "5400+30"]

{[%evp 15,89,21,21,16,0,4,12,19,63,64,74,11,41,36,40,-38,-22,-23,-37,-43,-16,-38,-7,-6,-6,-15,-8,-18,-5,-20,-19,-37,0,-2,-11,-20,0,0,0,0,86,79,76,87,87,87,88,58,156,26,26,26,35,9,10,10,22,0,0,0,0,0,0,0,0,0,0,0,0,0,-28000,-28000,-28000,-28000,-28000,-28000]} 1. e4 e5 2. Nf3 Nc6 3. d4 exd4 4. Nxd4 Bc5 {[%emt 0:06:30]} 5. Be3 {[%emt 0:01:00]} Qf6 {[%emt 0:00:30]} 6. c3 {[%emt 0:00:30]} Nge7 {[%emt 0:00:30]} 7. Bc4 {[%emt 0:00:30]} O-O {[%emt 0:00:00]} 8. Nxc6 {[%emt 0:00:30]} Qxc6 {[%emt 0:00:00]} 9. Bxc5 {[%emt 0:00:30]} Qxc5 {[%emt 0:00:30]} 10. Qd4 {[%emt 0:00:00]} Qg5 {[%emt 0:08:30]} 11. O-O {[%emt 0:01:00]} d5 {[%emt 0:01:30]} 12. f4 $1 {[%emt 0:06:30]} Qg6 {[%emt 0:11:30]} 13. f5 {[%emt 0:10:30]} (13. exd5 $16 Bh3 14. Rf2) 13... Qg4 {[%emt 0:29:30]} (13... Qg5 {seems wilder.} 14. Bxd5 Nxd5 15. exd5 Bxf5 16. Nd2 Rfe8) 14. Bxd5 {[%emt 0:23:30]} Bxf5 {[%emt 0:00:30]} 15. exf5 {[%emt 0:13:30]} ({White should try} 15. Bxb7 $14 Rab8 16. exf5 Qxd4+ 17. cxd4 Rxb7 18. b3) 15... Qxd4+ $15 {[%emt 0:01:30]} 16. cxd4 {[%emt 0:00:30]} Nxd5 {[%emt 0:00:30]} 17. Nc3 {[%emt 0:00:00]} Rad8 {[%emt 0:00:00]} 18. Rfe1 {[%emt 0:03:00]} Nxc3 {[%emt 0:19:03]} 19. bxc3 {[%emt 0:00:30]} Rd6 {[%emt 0:00:00]} 20. Rab1 {[%emt 0:04:30]} b6 {[%emt 0:00:00]} 21. Re3 {[%emt 0:03:30]} Rfd8 {[%emt 0:00:27]} 22. Rb5 {[%emt 0:04:30]} Kf8 {[%emt 0:00:30]} 23. Rbe5 {[%emt 0:00:00]} Rd5 {[%emt 0:03:45]} (23... f6 $5 {[%cal Rf6e5]} 24. Re7 R6d7 $11) 24. g4 {[%emt 0:04:00]} Rxe5 {[%emt 0:01:47]} 25. Rxe5 {[%emt 0:00:30]} f6 {[%emt 0:05:31]} 26. Re6 {[%emt 0:02:30]} Re8 {[%emt 0:01:37]} 27. d5 {[%emt 0:02:30]} Re7 {[%emt 0:00:30]} (27... b5 $11 {keeps the balance.}) 28. c4 {[%emt 0:00:30]} Ke8 {[%emt 0:00:30]} 29. Kf2 {[%emt 0:00:30]} Kd7 {[%emt 0:00:17]} 30. Ke3 {[%emt 0:05:07]} Re8 {[%emt 0:07:43]} 31. Kf4 {[%emt 0:06:55]} h6 {[%emt 0:00:57] [#]} (31... a5 $14) 32. h4 {[%emt 0:00:28]} (32. Kg3 $1 $16 {[%cal Rg3h4]}) 32... Rh8 $1 $11 {[%emt 0:00:32]} 33. a3 {[%emt 0:03:29]} Rh7 {[%emt 0:00:32]} 34. a4 {[%emt 0:01:52]} Rh8 {[%emt 0:01:03]} 35. Kf3 {[%emt 0:00:36]} a6 {[%emt 0:01:34]} 36. Kf4 {[%emt 0:00:05]} b5 $1 {[%emt 0:00:11]} 37. axb5 {[%emt 0:03:17]} axb5 {[%emt 0:00:30]} 38. cxb5 {[%emt 0:00:30]} Rb8 {[%emt 0:00:00]} 39. g5 {[%emt 0:00:00]} hxg5+ {[%emt 0:00:05]} 40. hxg5 {[%emt 0:00:24]} Rxb5 {[%emt 0:00:30]} 41. gxf6 {[%emt 0:00:30]} gxf6 {[%emt 0:00:32]} 42. Rxf6 $2 {[%emt 0:00:00][%mdl 8192]} (42. Ke4 $11) 42... Rxd5 {[%emt 0:00:30]} 43. Rf7+ {[%emt 0:00:03]} Kd6 {[%emt 0:00:00]} 44. Rf6+ {[%emt 0:02:04]} Kd7 {[%emt 0:00:03]} 45. Rf7+ {[%emt 0:00:48]} 1/2-1/2

[Event "Turkish Cup 2022"]
[Site "Sakarya"]
[Date "2022.03.29"]
[Round "7.17"]
[White "Isik, Alparslan"]
[Black "Kurdas, Halil Ibrahim"]
[Result "1-0"]
[ECO "D43"]
[WhiteElo "2328"]
[BlackElo "1850"]
[Annotator "TA"]
[PlyCount "89"]
[EventDate "2022.03.25"]
[EventType "swiss"]
[EventCountry "TUR"]
[SourceTitle "playchess.com"]
[Source "ChessBase"]
[SourceQuality "1"]
[TimeControl "5400+30"]

{[%evp 23,89,-7,-6,-20,39,23,52,52,94,93,109,74,114,110,138,97,118,113,108,102,102,81,100,87,106,62,149,149,152,144,217,219,238,238,244,241,283,283,283,264,429,430,425,415,432,431,448,356,953,900,857,700,1084,1067,1056,923,1143,1137,1192,1165,1188,1032,2202,2278,29992,29993,29993,29994]} 1. d4 Nf6 2. c4 e6 3. Nf3 d5 4. Nc3 {[%emt 0:04:30]} c6 {[%emt 0:05:30]} 5. Qd3 {[%emt 0:04:30]} Bb4 {[%emt 0:06:30]} 6. g3 {[%emt 0:00:30]} Nbd7 {[%emt 0:03:30]} 7. Bg2 {[%emt 0:00:30]} Ne4 {[%emt 0:02:30]} 8. a3 {[%emt 0:05:30]} Bxc3+ {[%emt 0:05:30]} 9. bxc3 {[%emt 0:00:00]} O-O {[%emt 0:00:30]} 10. Nd2 {[%emt 0:02:00]} f5 {[%emt 0:03:30]} 11. O-O {[%emt 0:04:30]} Nb6 {[%emt 0:04:30]} 12. cxd5 {[%emt 0:00:30]} ({Reject} 12. Nxe4 fxe4 13. Qd1 $17) 12... exd5 {[%emt 0:05:30]} 13. Nb3 {[%emt 0:11:30]} Na4 {[%emt 0:05:30]} ({Black should play} 13... Re8 $11) 14. c4 $14 {[%emt 0:05:30]} Be6 {[%emt 0:01:30]} 15. c5 $1 {[%emt 0:08:30]} b5 {[%emt 0:05:30]} 16. f3 {[%emt 0:01:30]} Nf6 {[%emt 0:00:30]} 17. Rb1 {[%emt 0:03:30]} Qd7 {[%emt 0:03:30]} 18. Bf4 {[%emt 0:01:30]} h6 {[%emt 0:03:30]} 19. Nd2 {[%emt 0:03:30]} Rf7 {[%emt 0:02:30]} 20. Be5 {[%emt 0:01:30]} Qd8 {[%emt 0:07:30]} 21. Qc2 {[%emt 0:07:30]} Nd7 {[%emt 0:04:30]} 22. Bd6 {[%emt 0:00:30]} Qf6 {[%emt 0:01:30]} 23. Qd3 {[%emt 0:05:30]} Rd8 {[%emt 0:08:30]} 24. e4 {[%emt 0:05:30]} g5 {[%emt 0:07:04]} (24... fxe4 $14 25. fxe4 Qg6) 25. e5 {[%emt 0:04:30]} Qg6 {[%emt 0:00:47]} 26. f4 {[%emt 0:00:51]} g4 {[%emt 0:00:30]} (26... Nf8 $16 27. Rf2 Bd7) 27. h3 {[%emt 0:00:30]} h5 {[%emt 0:00:41]} 28. h4 {[%emt 0:02:16]} Nf8 {[%emt 0:00:30]} 29. Rfc1 {[%emt 0:05:18]} a6 {[%emt 0:01:32]} 30. Nb3 {[%emt 0:01:08]} Bc8 {[%emt 0:00:30]} 31. Na5 {[%emt 0:00:30]} Bb7 $2 {[%emt 0:00:30]} (31... Bd7 32. Nb7 Ra8 33. Bxf8 Rb8) 32. Bf1 $18 {[%emt 0:00:00]} Ne6 {[%emt 0:05:11]} 33. Be2 {[%emt 0:00:18]} Ba8 {[%emt 0:04:15]} 34. Bd1 {[%emt 0:00:15]} Kh7 {[%emt 0:00:53]} 35. Qd2 {[%emt 0:01:42]} Rxd6 $2 {[%emt 0:01:29]} (35... Ra7 36. Bxa4 bxa4) 36. exd6 $18 {[%emt 0:02:19]} Qf6 {[%emt 0:02:22]} 37. Rb4 {[%emt 0:00:01]} Naxc5 {[%emt 0:00:08]} 38. dxc5 {[%emt 0:00:46]} Nf8 {[%emt 0:00:22]} 39. Qd4 {[%emt 0:00:26]} Qd8 {[%emt 0:00:35]} 40. Rb3 {[%emt 0:00:44]} Qxa5 {[%emt 0:00:25]} 41. Re3 {[%emt 0:00:02]} Ng6 {[%emt 0:00:06]} 42. Bc2 {[%emt 0:01:22]} Qd8 {[%emt 0:00:45]} 43. Rce1 {[%emt 0:00:05]} Nxh4 {[%emt 0:00:24]} 44. gxh4 {[%emt 0:00:30]} Qxh4 {[%emt 0:00:30]} 45. Bxf5+ {[%emt 0:00:00]} 1-0